Workbook

Sheet Kalkulator
B1: EKO RATY Kalkulator rat kredytu
B5: Rodzaj kredytu | D5: Kwota kredytu | E5: 46500
B6: Ubezpieczenie
B7: Liczba rat | E7: © 2015 Alior Bank S.A.
E8: DKR, wersja 1.0, październik 2015r.
B10: =Arkusz1!F8 -> Rata kredytu: | C10: =Arkusz1!G8 -> 564.2
B11: Kredyt netto | C11: =Arkusz1!G5 -> 46500 | D11: =Arkusz1!G8-Arkusz1!G7 -> 0
B12: Kredyt brutto | C12: =Arkusz1!G6 -> 53475 | F12: =Arkusz1!K6 -> 0
B17: Obliczenia dokonane na podstawie kalkulatora nie stanowią oferty w rozumieniu Kodeksu Cywilnego

Sheet Arkusz1 (hidden)
B2: Prowizja % | C2: =SUMIF(C44:C75,D214,F44:F75) -> 0.15
B3: Prowizja podstawowa agenta kwota | C3: =C5*G5 -> 1395
B4: Oprocentowanie | C4: =SUMIF(C12:C43,D214,F12:F43) -> 0.04885605987 | J4: Opłata przygotowawcza | K4: =ROUND(G6*C5,2) -> 1604.25
B5: Prowizja agenta % | C5: =ROUNDUP(SUMIF(E76:E203,D212,F76:F203),5) -> 0.03 | F5: Kredyt netto | G5: =Kalkulator!E5 -> 46500 | J5: Odsetki | K5: =-ROUND(IFERROR(CUMIPMT(C4/12,C6,G6,1,C6,0),0),2) -> 14229
B6: Liczba Rat | C6: =D248 -> 120 | F6: Kredyt brutto | G6: =G5+C2*G5 -> 53475 | J6: Składka ubezpieczeniowa | K6: =C7*C6*G6 -> 0
B7: Stawka PPI | C7: =D205 -> 0 | F7: Rata kredytu: | G7: =ROUND(-PMT(C4/12,C6,G6),2) -> 564.2
B8: Rate Cap | C8: 10 | F8: Rata kredytu: | G8: =G7+IF(E214="Promo",0,0) -> 564.2 | J8: PDSE | K8: =(G6*C8/12)/(1-(1+C8/12)^(-C6))*C6-G6 -> 5294025 | M8: Prowizja Havo | N8: =K9-K8+K10 -> -5278191.75
B9: Prowizja agenta +3% | C9: =IF(C5>0,((C5+1.5%)*G5),0) -> 2092.5 | J9: Przychód z kredytu | K9: =K5+K4 -> 15833.25
G10: =ROUND($G$5/G$11+$G$5*0.005,2) -> 4107.5 | H10: =ROUND($G$5/(1-0.05),2) -> 48947.37 | J10: Udział w składce | K10: =C9*K6 -> 0
F11: Szukana wartość | G11: 12 | H11: 13 | I11: 14 | J11: 15 | K11: 16 | L11: 17 | M11: 18 | N11: 19 | O11: 20 | P11: 21 | Q11: 22 | R11: 23 | S11: 24 | T11: 25 | U11: 26 | V11: 27 | W11: 28 | X11: 29 | Y11: 30 | Z11: 31 | AA11: 32 | AB11: 33 | AC11: 34 | AD11: 35 | AE11: 36 | AF11: 37 | AG11: 38 | AH11: 39 | AI11: 40 | AJ11: 41 | AK11: 42 | AL11: 43 | AM11: 44 | AN11: 45 | AO11: 46 | AP11: 47 | AQ11: 48 | AR11: 49 | AS11: 50 | AT11: 51 | AU11: 52 | AV11: 53 | AW11: 54 | AX11: 55 | AY11: 56 | AZ11: 57 | BA11: 58 | BB11: 59 | BC11: 60 | BD11: 61 | BE11: 62 | BF11: 63 | BG11: 64 | BH11: 65 | BI11: 66 | BJ11: 67 | BK11: 68 | BL11: 69 | BM11: 70 | BN11: 71 | BO11: 72 | BP11: 73 | BQ11: 74 | BR11: 75 | BS11: 76 | BT11: 77 | BU11: 78 | BV11: 79 | BW11: 80 | BX11: 81 | BY11: 82 | BZ11: 83 | CA11: 84 | CB11: 85 | CC11: 86 | CD11: 87 | CE11: 88 | CF11: 89 | CG11: 90 | CH11: 91 | CI11: 92 | CJ11: 93 | CK11: 94 | CL11: 95 | CM11: 96 | CN11: 97 | CO11: 98 | CP11: 99 | CQ11: 100 | CR11: 101 | CS11: 102 | CT11: 103 | CU11: 104 | CV11: 105 | CW11: 106 | CX11: 107 | CY11: 108 | CZ11: 109 | DA11: 110 | DB11: 111 | DC11: 112 | DD11: 113 | DE11: 114 | DF11: 115 | DG11: 116 | DH11: 117 | DI11: 118 | DJ11: 119 | DK11: 120
A12: 1 | B12: TYP OPROCENTOWANIA | C12: EkoRaty 1 | F12: =SUMIF($G$11:$DK$11,$D$248,G12:DK12) -> 0.04885605987 | G12: 3.7494761e-08 | H12: -2.556700358e-08 | I12: -1.680252627e-08 | J12: -1.055024881e-08 | K12: 1.699409391e-08 | L12: -1.53406117e-08 | M12: 2.529642296e-08 | N12: -1.169958411e-08 | O12: 1.961242597e-08 | P12: -1.069009162e-08 | Q12: -8.223883032e-09 | R12: -1.232509312e-08 | S12: -1.361253536e-08 | T12: 1.840764302e-08 | U12: -1.267504943e-08 | V12: 1.627602013e-08 | W12: 2.520935103e-08 | X12: -1.457387705e-08 | Y12: -1.083993582e-08 | Z12: 1.469539118e-08 | AA12: -4.639500841e-09 | AB12: -1.118821454e-08 | AC12: -1.299607113e-08 | AD12: 5.733501578e-09 | AE12: -2.943793235e-09 | AF12: 0.0009332030282 | AG12: 0.0030987451 | AH12: 0.005151215865 | AI12: 0.007098904337 | AJ12: 0.008949311554 | AK12: 0.01070924201 | AL12: 0.01238488263 | AM12: 0.0139818712 | AN12: 0.01550535609 | AO12: 0.01696004802 | AP12: 0.01835026571 | AQ12: 0.0196799757 | AR12: 0.02095282758 | AS12: 0.022172185 | AT12: 0.02334115302 | AU12: 0.02446260265 | AV12: 0.0255391923 | AW12: 0.02657338717 | AX12: 0.02756747647 | AY12: 0.02852358882 | AZ12: 0.02944370607 | BA12: 0.03032967574 | BB12: 0.03118322214 | BC12: 0.03200595658 | BD12: 0.03279938633 | BE12: 0.03356492296 | BF12: 0.03430388975 | BG12: 0.03501752853 | BH12: 0.03570700581 | BI12: 0.03637341836 | BJ12: 0.03701779843 | BK12: 0.03764111832 | BL12: 0.03824429473 | BM12: 0.03882819263 | BN12: 0.03939362884 | BO12: 0.03994137539 | BP12: 0.04047216248 | BQ12: 0.04098668126 | BR12: 0.04148558649 | BS12: 0.04196949878 | BT12: 0.04243900686 | BU12: 0.04289466957 | BV12: 0.04333701773 | BW12: 0.04376655586 | BX12: 0.04418376379 | BY12: 0.04458909816 | BZ12: 0.04498299379 | CA12: 0.04536586494 | CB12: 0.04573810654 | CC12: 0.0461000953 | CD12: 0.04645219071 | CE12: 0.04679473604 | CF12: 0.04712805922 | CG12: 0.04745247373 | CH12: 0.0477682793 | CI12: 0.04807576274 | CJ12: 0.04837519857 | CK12: 0.04866684967 | CL12: 0.04895096793 | CM12: 0.04398270679 | CN12: 0.04425477456 | CO12: 0.04452017696 | CP12: 0.04477911862 | CQ12: 0.04503179607 | CR12: 0.04527839818 | CS12: 0.04551910651 | CT12: 0.04575409563 | CU12: 0.04598353351 | CV12: 0.0462075818 | CW12: 0.0464263961 | CX12: 0.04664012626 | CY12: 0.04684891664 | CZ12: 0.04705290638 | DA12: 0.04725222958 | DB12: 0.04744701556 | DC12: 0.04763738908 | DD12: 0.0478234705 | DE12: 0.04800537601 | DF12: 0.04818321778 | DG12: 0.04835710414 | DH12: 0.04852713975 | DI12: 0.04869342574 | DJ12: 0.04885605987 | DK12: 0.04885605987
A13: 2 | B13: TYP OPROCENTOWANIA
A14: 3 | B14: TYP OPROCENTOWANIA
A15: 5 | B15: TYP OPROCENTOWANIA
A16: 7 | B16: TYP OPROCENTOWANIA
A17: 8 | B17: TYP OPROCENTOWANIA
A18: 9 | B18: TYP OPROCENTOWANIA
A19: 10 | B19: TYP OPROCENTOWANIA
A20: 11 | B20: TYP OPROCENTOWANIA
A21: 12 | B21: TYP OPROCENTOWANIA
A22: 13 | B22: TYP OPROCENTOWANIA
A23: 15 | B23: TYP OPROCENTOWANIA
A24: 17 | B24: TYP OPROCENTOWANIA
A25: 18 | B25: TYP OPROCENTOWANIA
A26: 19 | B26: TYP OPROCENTOWANIA
A27: 20 | B27: TYP OPROCENTOWANIA
A28: 21 | B28: TYP OPROCENTOWANIA
A29: 22 | B29: TYP OPROCENTOWANIA
A30: 23 | B30: TYP OPROCENTOWANIA
A31: 24 | B31: TYP OPROCENTOWANIA
A32: 25 | B32: TYP OPROCENTOWANIA
A33: 27 | B33: TYP OPROCENTOWANIA
A34: 29 | B34: TYP OPROCENTOWANIA
A35: 30 | B35: TYP OPROCENTOWANIA
A36: 31 | B36: TYP OPROCENTOWANIA
A37: 32 | B37: TYP OPROCENTOWANIA
A38: 33 | B38: TYP OPROCENTOWANIA
A39: 34 | B39: TYP OPROCENTOWANIA
A40: 35 | B40: TYP OPROCENTOWANIA
A41: 37 | B41: TYP OPROCENTOWANIA
A42: 39 | B42: TYP OPROCENTOWANIA
A43: 40 | B43: TYP OPROCENTOWANIA
A44: 1 | B44: PROWIZJA | C44: EkoRaty 1 | F44: =SUMIF($G$11:$DK$11,$D$248,G44:DK44) -> 0.15 | G44: 0.0492 | H44: 0.0533 | I44: 0.0574 | J44: 0.0615 | K44: 0.0656 | L44: 0.0697 | M44: 0.0738 | N44: 0.0779 | O44: 0.082 | P44: 0.0861 | Q44: 0.0902 | R44: 0.0943 | S44: 0.0984 | T44: 0.1025 | U44: 0.1066 | V44: 0.1107 | W44: 0.1148 | X44: 0.1189 | Y44: 0.123 | Z44: 0.1271 | AA44: 0.1312 | AB44: 0.1353 | AC44: 0.1394 | AD44: 0.1435 | AE44: 0.1476 | AF44: 0.15 | AG44: 0.15 | AH44: 0.15 | AI44: 0.15 | AJ44: 0.15 | AK44: 0.15 | AL44: 0.15 | AM44: 0.15 | AN44: 0.15 | AO44: 0.15 | AP44: 0.15 | AQ44: 0.15 | AR44: 0.15 | AS44: 0.15 | AT44: 0.15 | AU44: 0.15 | AV44: 0.15 | AW44: 0.15 | AX44: 0.15 | AY44: 0.15 | AZ44: 0.15 | BA44: 0.15 | BB44: 0.15 | BC44: 0.15 | BD44: 0.15 | BE44: 0.15 | BF44: 0.15 | BG44: 0.15 | BH44: 0.15 | BI44: 0.15 | BJ44: 0.15 | BK44: 0.15 | BL44: 0.15 | BM44: 0.15 | BN44: 0.15 | BO44: 0.15 | BP44: 0.15 | BQ44: 0.15 | BR44: 0.15 | BS44: 0.15 | BT44: 0.15 | BU44: 0.15 | BV44: 0.15 | BW44: 0.15 | BX44: 0.15 | BY44: 0.15 | BZ44: 0.15 | CA44: 0.15 | CB44: 0.15 | CC44: 0.15 | CD44: 0.15 | CE44: 0.15 | CF44: 0.15 | CG44: 0.15 | CH44: 0.15 | CI44: 0.15 | CJ44: 0.15 | CK44: 0.15 | CL44: 0.15 | CM44: 0.15 | CN44: 0.15 | CO44: 0.15 | CP44: 0.15 | CQ44: 0.15 | CR44: 0.15 | CS44: 0.15 | CT44: 0.15 | CU44: 0.15 | CV44: 0.15 | CW44: 0.15 | CX44: 0.15 | CY44: 0.15 | CZ44: 0.15 | DA44: 0.15 | DB44: 0.15 | DC44: 0.15 | DD44: 0.15 | DE44: 0.15 | DF44: 0.15 | DG44: 0.15 | DH44: 0.15 | DI44: 0.15 | DJ44: 0.15 | DK44: 0.15
A45: 2 | B45: PROWIZJA
A46: 3 | B46: PROWIZJA
A47: 5 | B47: PROWIZJA
A48: 7 | B48: PROWIZJA
A49: 8 | B49: PROWIZJA
A50: 9 | B50: PROWIZJA
A51: 10 | B51: PROWIZJA
A52: 11 | B52: PROWIZJA
A53: 12 | B53: PROWIZJA
A54: 13 | B54: PROWIZJA
A55: 15 | B55: PROWIZJA
A56: 17 | B56: PROWIZJA
A57: 18 | B57: PROWIZJA
A58: 19 | B58: PROWIZJA
A59: 20 | B59: PROWIZJA
A60: 21 | B60: PROWIZJA
A61: 22 | B61: PROWIZJA
A62: 23 | B62: PROWIZJA
A63: 24 | B63: PROWIZJA
A64: 25 | B64: PROWIZJA
A65: 27 | B65: PROWIZJA
A66: 29 | B66: PROWIZJA
A67: 30 | B67: PROWIZJA
A68: 31 | B68: PROWIZJA
A69: 32 | B69: PROWIZJA
A70: 33 | B70: PROWIZJA
A71: 34 | B71: PROWIZJA
A72: 35 | B72: PROWIZJA
A73: 37 | B73: PROWIZJA
A74: 39 | B74: PROWIZJA
A75: 40 | B75: PROWIZJA
A76: 1 | B76: TYP OPŁATY PRZYGOTOWAWCZEJ Bez PPI | C76: EkoRaty 1 | D76: Brak ubezpieczenia | E76: =C76&D76 -> EkoRaty 1Brak ubezpieczenia | F76: =SUMIF($G$11:$DK$11,$D$248,G76:DK76) -> 0.03 | G76: 0.012 | H76: 0.012 | I76: 0.012 | J76: 0.012 | K76: 0.012 | L76: 0.012 | M76: 0.012 | N76: 0.012 | O76: 0.012 | P76: 0.012 | Q76: 0.012 | R76: 0.012 | S76: 0.02 | T76: 0.02 | U76: 0.02 | V76: 0.02 | W76: 0.02 | X76: 0.02 | Y76: 0.02 | Z76: 0.02 | AA76: 0.02 | AB76: 0.02 | AC76: 0.02 | AD76: 0.02 | AE76: 0.03 | AF76: 0.03 | AG76: 0.03 | AH76: 0.03 | AI76: 0.03 | AJ76: 0.03 | AK76: 0.03 | AL76: 0.03 | AM76: 0.03 | AN76: 0.03 | AO76: 0.03 | AP76: 0.03 | AQ76: 0.03 | AR76: 0.03 | AS76: 0.03 | AT76: 0.03 | AU76: 0.03 | AV76: 0.03 | AW76: 0.03 | AX76: 0.03 | AY76: 0.03 | AZ76: 0.03 | BA76: 0.03 | BB76: 0.03 | BC76: 0.03 | BD76: 0.03 | BE76: 0.03 | BF76: 0.03 | BG76: 0.03 | BH76: 0.03 | BI76: 0.03 | BJ76: 0.03 | BK76: 0.03 | BL76: 0.03 | BM76: 0.03 | BN76: 0.03 | BO76: 0.03 | BP76: 0.03 | BQ76: 0.03 | BR76: 0.03 | BS76: 0.03 | BT76: 0.03 | BU76: 0.03 | BV76: 0.03 | BW76: 0.03 | BX76: 0.03 | BY76: 0.03 | BZ76: 0.03 | CA76: 0.03 | CB76: 0.03 | CC76: 0.03 | CD76: 0.03 | CE76: 0.03 | CF76: 0.03 | CG76: 0.03 | CH76: 0.03 | CI76: 0.03 | CJ76: 0.03 | CK76: 0.03 | CL76: 0.03 | CM76: 0.015 | CN76: 0.015 | CO76: 0.015 | CP76: 0.015 | CQ76: 0.015 | CR76: 0.015 | CS76: 0.015 | CT76: 0.015 | CU76: 0.015 | CV76: 0.015 | CW76: 0.015 | CX76: 0.015 | CY76: 0.02 | CZ76: 0.02 | DA76: 0.02 | DB76: 0.02 | DC76: 0.02 | DD76: 0.02 | DE76: 0.02 | DF76: 0.02 | DG76: 0.02 | DH76: 0.02 | DI76: 0.02 | DJ76: 0.02 | DK76: 0.03
A77: 2 | B77: TYP OPŁATY PRZYGOTOWAWCZEJ Bez PPI
A78: 3 | B78: TYP OPŁATY PRZYGOTOWAWCZEJ Bez PPI | C78: Oferta 0,8%/m-c bez ubezp. | D78: Brak ubezpieczenia
A79: 5 | B79: TYP OPŁATY PRZYGOTOWAWCZEJ Bez PPI | C79: Oferta 0,9%/m-c bez ubezp. | D79: Brak ubezpieczenia
A80: 7 | B80: TYP OPŁATY PRZYGOTOWAWCZEJ Bez PPI | C80: Oferta 1,0%/m-c bez ubezp. | D80: Brak ubezpieczenia
A81: 8 | B81: TYP OPŁATY PRZYGOTOWAWCZEJ Bez PPI | C81: Oferta 1,1%/m-c bez ubezp. | D81: Brak ubezpieczenia
A82: 9 | B82: TYP OPŁATY PRZYGOTOWAWCZEJ Bez PPI | C82: Oferta 1,2%/m-c bez ubezp. | D82: Brak ubezpieczenia
A83: 10 | B83: TYP OPŁATY PRZYGOTOWAWCZEJ Bez PPI | C83: Oferta 1,3%/m-c bez ubezp. | D83: Brak ubezpieczenia
A84: 11 | B84: TYP OPŁATY PRZYGOTOWAWCZEJ Bez PPI | C84: Oferta 1,4%/m-c bez ubezp. | D84: Brak ubezpieczenia
A85: 12 | B85: TYP OPŁATY PRZYGOTOWAWCZEJ Bez PPI | C85: Oferta 1,5%/m-c bez ubezp. | D85: Brak ubezpieczenia
A86: 13 | B86: TYP OPŁATY PRZYGOTOWAWCZEJ Bez PPI | C86: Oferta 1,6%/m-c bez ubezp. | D86: Brak ubezpieczenia
A87: 15 | B87: TYP OPŁATY PRZYGOTOWAWCZEJ Bez PPI | C87: Oferta 1,7%/m-c bez ubezp. | D87: Brak ubezpieczenia
A88: 17 | B88: TYP OPŁATY PRZYGOTOWAWCZEJ Bez PPI | C88: Oferta 1,8%/m-c bez ubezp. | D88: Brak ubezpieczenia
A89: 18 | B89: TYP OPŁATY PRZYGOTOWAWCZEJ Bez PPI | C89: Oferta 1,9%/m-c bez ubezp. | D89: Brak ubezpieczenia
A90: 19 | B90: TYP OPŁATY PRZYGOTOWAWCZEJ Bez PPI | C90: Oferta 2,0%/m-c bez ubezp. | D90: Brak ubezpieczenia
A91: 20 | B91: TYP OPŁATY PRZYGOTOWAWCZEJ Bez PPI | C91: Standard I bez ubezp. | D91: Brak ubezpieczenia
A92: 21 | B92: TYP OPŁATY PRZYGOTOWAWCZEJ Bez PPI | C92: Standard II bez ubezp. | D92: Brak ubezpieczenia
A93: 22 | B93: TYP OPŁATY PRZYGOTOWAWCZEJ Bez PPI | C93: kredyt 0% | D93: Brak ubezpieczenia
A94: 23 | B94: TYP OPŁATY PRZYGOTOWAWCZEJ Bez PPI | C94: ="Promo_"&C76&"_max5000" -> Promo_EkoRaty 1_max5000 | D94: Brak ubezpieczenia
A95: 24 | B95: TYP OPŁATY PRZYGOTOWAWCZEJ Bez PPI | C95: Promo__max5000 | D95: Brak ubezpieczenia
A96: 25 | B96: TYP OPŁATY PRZYGOTOWAWCZEJ Bez PPI | C96: Promo_Oferta 0,8%/m-c bez ubezp._max5000 | D96: Brak ubezpieczenia
A97: 27 | B97: TYP OPŁATY PRZYGOTOWAWCZEJ Bez PPI | C97: Promo_Oferta 0,9%/m-c bez ubezp._max5000 | D97: Brak ubezpieczenia
A98: 29 | B98: TYP OPŁATY PRZYGOTOWAWCZEJ Bez PPI | C98: Promo_Oferta 1,0%/m-c bez ubezp._max5000 | D98: Brak ubezpieczenia
A99: 30 | B99: TYP OPŁATY PRZYGOTOWAWCZEJ Bez PPI | C99: Promo_Oferta 1,1%/m-c bez ubezp._max5000 | D99: Brak ubezpieczenia
A100: 31 | B100: TYP OPŁATY PRZYGOTOWAWCZEJ Bez PPI | C100: Promo_Oferta 1,2%/m-c bez ubezp._max5000 | D100: Brak ubezpieczenia
A101: 32 | B101: TYP OPŁATY PRZYGOTOWAWCZEJ Bez PPI | C101: Promo_Oferta 1,3%/m-c bez ubezp._max5000 | D101: Brak ubezpieczenia
A102: 33 | B102: TYP OPŁATY PRZYGOTOWAWCZEJ Bez PPI | C102: Promo_Oferta 1,4%/m-c bez ubezp._max5000 | D102: Brak ubezpieczenia
A103: 34 | B103: TYP OPŁATY PRZYGOTOWAWCZEJ Bez PPI | C103: Promo_Oferta 1,5%/m-c bez ubezp._max5000 | D103: Brak ubezpieczenia
A104: 35 | B104: TYP OPŁATY PRZYGOTOWAWCZEJ Bez PPI | C104: Promo_Oferta 1,6%/m-c bez ubezp._max5000 | D104: Brak ubezpieczenia
A105: 37 | B105: TYP OPŁATY PRZYGOTOWAWCZEJ Bez PPI | C105: Promo_Oferta 1,7%/m-c bez ubezp._max5000 | D105: Brak ubezpieczenia
A106: 39 | B106: TYP OPŁATY PRZYGOTOWAWCZEJ Bez PPI | C106: Promo_Oferta 1,8%/m-c bez ubezp._max5000 | D106: Brak ubezpieczenia
A107: 40 | B107: TYP OPŁATY PRZYGOTOWAWCZEJ Bez PPI | C107: Promo_kredyt 0% | D107: Brak ubezpieczenia
A108: 1 | B108: TYP OPŁATY PRZYGOTOWAWCZEJ PPI I | C108: standard I | D108: Opcja 1 - 0,35%
A109: 2 | B109: TYP OPŁATY PRZYGOTOWAWCZEJ PPI I | C109: standard II | D109: Opcja 1 - 0,35%
A110: 3 | B110: TYP OPŁATY PRZYGOTOWAWCZEJ PPI I | C110: 0,6% za m-c | D110: Opcja 1 - 0,35%
A111: 5 | B111: TYP OPŁATY PRZYGOTOWAWCZEJ PPI I | C111: 0,8% za m-c | D111: Opcja 1 - 0,35%
A112: 7 | B112: TYP OPŁATY PRZYGOTOWAWCZEJ PPI I | C112: 1% za m-c | D112: Opcja 1 - 0,35%
A113: 8 | B113: TYP OPŁATY PRZYGOTOWAWCZEJ PPI I | C113: 1,1% za m-c | D113: Opcja 1 - 0,35%
A114: 9 | B114: TYP OPŁATY PRZYGOTOWAWCZEJ PPI I | C114: 1,2% za m-c | D114: Opcja 1 - 0,35%
A115: 10 | B115: TYP OPŁATY PRZYGOTOWAWCZEJ PPI I | C115: 1,3% za m-c | D115: Opcja 1 - 0,35%
A116: 11 | B116: TYP OPŁATY PRZYGOTOWAWCZEJ PPI I | C116: 1,4% za m-c | D116: Opcja 1 - 0,35%
A117: 12 | B117: TYP OPŁATY PRZYGOTOWAWCZEJ PPI I | C117: 1,5% za m-c | D117: Opcja 1 - 0,35%
A118: 13 | B118: TYP OPŁATY PRZYGOTOWAWCZEJ PPI I | C118: 1,6% za m-c | D118: Opcja 1 - 0,35%
A119: 15 | B119: TYP OPŁATY PRZYGOTOWAWCZEJ PPI I | C119: 1,8% za m-c | D119: Opcja 1 - 0,35%
A120: 17 | B120: TYP OPŁATY PRZYGOTOWAWCZEJ PPI I | C120: 2% za m-c | D120: Opcja 1 - 0,35%
A121: 18 | B121: TYP OPŁATY PRZYGOTOWAWCZEJ PPI I | C121: standard I max80000pln | D121: Opcja 1 - 0,35%
A122: 19 | B122: TYP OPŁATY PRZYGOTOWAWCZEJ PPI I | C122: standard II max80000pln | D122: Opcja 1 - 0,35%
A123: 20 | B123: TYP OPŁATY PRZYGOTOWAWCZEJ PPI I | C123: 0,7% za m-c max80000pln | D123: Opcja 1 - 0,35%
A124: 21 | B124: TYP OPŁATY PRZYGOTOWAWCZEJ PPI I | C124: 1% za m-c max80000pln | D124: Opcja 1 - 0,35%
A125: 22 | B125: TYP OPŁATY PRZYGOTOWAWCZEJ PPI I | C125: kredyt 0% | D125: Opcja 1 - 0,35%
A126: 23 | B126: TYP OPŁATY PRZYGOTOWAWCZEJ PPI I | C126: ="Promo_"&C108&"_max5000" -> Promo_standard I _max5000 | D126: Opcja 1 - 0,35%
A127: 24 | B127: TYP OPŁATY PRZYGOTOWAWCZEJ PPI I | C127: Promo_standard II _max5000 | D127: Opcja 1 - 0,35%
A128: 25 | B128: TYP OPŁATY PRZYGOTOWAWCZEJ PPI I | C128: Promo_0,6% za m-c_max5000 | D128: Opcja 1 - 0,35%
A129: 27 | B129: TYP OPŁATY PRZYGOTOWAWCZEJ PPI I | C129: Promo_0,8% za m-c_max5000 | D129: Opcja 1 - 0,35%
A130: 29 | B130: TYP OPŁATY PRZYGOTOWAWCZEJ PPI I | C130: Promo_1% za m-c_max5000 | D130: Opcja 1 - 0,35%
A131: 30 | B131: TYP OPŁATY PRZYGOTOWAWCZEJ PPI I | C131: Promo_1,1% za m-c_max5000 | D131: Opcja 1 - 0,35%
A132: 31 | B132: TYP OPŁATY PRZYGOTOWAWCZEJ PPI I | C132: Promo_1,2% za m-c_max5000 | D132: Opcja 1 - 0,35%
A133: 32 | B133: TYP OPŁATY PRZYGOTOWAWCZEJ PPI I | C133: Promo_1,3% za m-c_max5000 | D133: Opcja 1 - 0,35%
A134: 33 | B134: TYP OPŁATY PRZYGOTOWAWCZEJ PPI I | C134: Promo_1,4% za m-c_max5000 | D134: Opcja 1 - 0,35%
A135: 34 | B135: TYP OPŁATY PRZYGOTOWAWCZEJ PPI I | C135: Promo_1,5% za m-c_max5000 | D135: Opcja 1 - 0,35%
A136: 35 | B136: TYP OPŁATY PRZYGOTOWAWCZEJ PPI I | C136: Promo_1,6% za m-c_max5000 | D136: Opcja 1 - 0,35%
A137: 37 | B137: TYP OPŁATY PRZYGOTOWAWCZEJ PPI I | C137: Promo_1,8% za m-c_max5000 | D137: Opcja 1 - 0,35%
A138: 39 | B138: TYP OPŁATY PRZYGOTOWAWCZEJ PPI I | C138: Promo_2% za m-c_max5000 | D138: Opcja 1 - 0,35%
A139: 40 | B139: TYP OPŁATY PRZYGOTOWAWCZEJ PPI I | C139: Promo_kredyt 0% | D139: Opcja 1 - 0,35%
A140: 1 | B140: TYP OPŁATY PRZYGOTOWAWCZEJ PPI II | C140: standard I | D140: Opcja 2 - 0,7%
A141: 2 | B141: TYP OPŁATY PRZYGOTOWAWCZEJ PPI II | C141: standard II | D141: Opcja 2 - 0,7%
A142: 3 | B142: TYP OPŁATY PRZYGOTOWAWCZEJ PPI II | C142: 0,6% za m-c | D142: Opcja 2 - 0,7%
A143: 5 | B143: TYP OPŁATY PRZYGOTOWAWCZEJ PPI II | C143: 0,8% za m-c | D143: Opcja 2 - 0,7%
A144: 7 | B144: TYP OPŁATY PRZYGOTOWAWCZEJ PPI II | C144: 1% za m-c | D144: Opcja 2 - 0,7%
A145: 8 | B145: TYP OPŁATY PRZYGOTOWAWCZEJ PPI II | C145: 1,1% za m-c | D145: Opcja 2 - 0,7%
A146: 9 | B146: TYP OPŁATY PRZYGOTOWAWCZEJ PPI II | C146: 1,2% za m-c | D146: Opcja 2 - 0,7%
A147: 10 | B147: TYP OPŁATY PRZYGOTOWAWCZEJ PPI II | C147: 1,3% za m-c | D147: Opcja 2 - 0,7%
A148: 11 | B148: TYP OPŁATY PRZYGOTOWAWCZEJ PPI II | C148: 1,4% za m-c | D148: Opcja 2 - 0,7%
A149: 12 | B149: TYP OPŁATY PRZYGOTOWAWCZEJ PPI II | C149: 1,5% za m-c | D149: Opcja 2 - 0,7%
A150: 13 | B150: TYP OPŁATY PRZYGOTOWAWCZEJ PPI II | C150: 1,6% za m-c | D150: Opcja 2 - 0,7%
A151: 15 | B151: TYP OPŁATY PRZYGOTOWAWCZEJ PPI II | C151: 1,8% za m-c | D151: Opcja 2 - 0,7%
A152: 17 | B152: TYP OPŁATY PRZYGOTOWAWCZEJ PPI II | C152: 2% za m-c | D152: Opcja 2 - 0,7%
A153: 20 | B153: TYP OPŁATY PRZYGOTOWAWCZEJ PPI II | C153: standard I max80000pln | D153: Opcja 2 - 0,7%
A154: 21 | B154: TYP OPŁATY PRZYGOTOWAWCZEJ PPI II | C154: standard II max80000pln | D154: Opcja 2 - 0,7%
A155: 18 | B155: TYP OPŁATY PRZYGOTOWAWCZEJ PPI II | C155: 0,7% za m-c max80000pln | D155: Opcja 2 - 0,7%
A156: 19 | B156: TYP OPŁATY PRZYGOTOWAWCZEJ PPI II | C156: 1% za m-c max80000pln | D156: Opcja 2 - 0,7%
A157: 22 | B157: TYP OPŁATY PRZYGOTOWAWCZEJ PPI II | C157: kredyt 0% | D157: Opcja 2 - 0,7%
A158: 23 | B158: TYP OPŁATY PRZYGOTOWAWCZEJ PPI II | C158: ="Promo_"&C140&"_max5000" -> Promo_standard I _max5000 | D158: Opcja 2 - 0,7%
A159: 24 | B159: TYP OPŁATY PRZYGOTOWAWCZEJ PPI II | C159: ="Promo_"&C141&"_max5000" -> Promo_standard II _max5000 | D159: Opcja 2 - 0,7%
A160: 25 | B160: TYP OPŁATY PRZYGOTOWAWCZEJ PPI II | C160: Promo_0,6% za m-c_max5000 | D160: Opcja 2 - 0,7%
A161: 27 | B161: TYP OPŁATY PRZYGOTOWAWCZEJ PPI II | C161: Promo_0,8% za m-c_max5000 | D161: Opcja 2 - 0,7%
A162: 29 | B162: TYP OPŁATY PRZYGOTOWAWCZEJ PPI II | C162: Promo_1% za m-c_max5000 | D162: Opcja 2 - 0,7%
A163: 30 | B163: TYP OPŁATY PRZYGOTOWAWCZEJ PPI II | C163: Promo_1,1% za m-c_max5000 | D163: Opcja 2 - 0,7%
A164: 31 | B164: TYP OPŁATY PRZYGOTOWAWCZEJ PPI II | C164: Promo_1,2% za m-c_max5000 | D164: Opcja 2 - 0,7%
A165: 32 | B165: TYP OPŁATY PRZYGOTOWAWCZEJ PPI II | C165: Promo_1,3% za m-c_max5000 | D165: Opcja 2 - 0,7%
A166: 33 | B166: TYP OPŁATY PRZYGOTOWAWCZEJ PPI II | C166: Promo_1,4% za m-c_max5000 | D166: Opcja 2 - 0,7%
A167: 34 | B167: TYP OPŁATY PRZYGOTOWAWCZEJ PPI II | C167: Promo_1,5% za m-c_max5000 | D167: Opcja 2 - 0,7%
A168: 35 | B168: TYP OPŁATY PRZYGOTOWAWCZEJ PPI II | C168: Promo_1,6% za m-c_max5000 | D168: Opcja 2 - 0,7%
A169: 37 | B169: TYP OPŁATY PRZYGOTOWAWCZEJ PPI II | C169: Promo_1,8% za m-c_max5000 | D169: Opcja 2 - 0,7%
A170: 39 | B170: TYP OPŁATY PRZYGOTOWAWCZEJ PPI II | C170: Promo_2% za m-c_max5000 | D170: Opcja 2 - 0,7%
A171: 40 | B171: TYP OPŁATY PRZYGOTOWAWCZEJ PPI II | C171: Promo_kredyt 0% | D171: Opcja 2 - 0,7%
A172: 1 | B172: TYP OPŁATY PRZYGOTOWAWCZEJ PPI III | C172: standard I | D172: Opcja 3 - 1,0%
A173: 2 | B173: TYP OPŁATY PRZYGOTOWAWCZEJ PPI III | C173: standard II | D173: Opcja 3 - 1,0%
A174: 3 | B174: TYP OPŁATY PRZYGOTOWAWCZEJ PPI III | C174: 0,6% za m-c | D174: Opcja 3 - 1,0%
A175: 5 | B175: TYP OPŁATY PRZYGOTOWAWCZEJ PPI III | C175: 0,8% za m-c | D175: Opcja 3 - 1,0%
A176: 7 | B176: TYP OPŁATY PRZYGOTOWAWCZEJ PPI III | C176: 1% za m-c | D176: Opcja 3 - 1,0%
A177: 8 | B177: TYP OPŁATY PRZYGOTOWAWCZEJ PPI III | C177: 1,1% za m-c | D177: Opcja 3 - 1,0%
A178: 9 | B178: TYP OPŁATY PRZYGOTOWAWCZEJ PPI III | C178: 1,2% za m-c | D178: Opcja 3 - 1,0%
A179: 10 | B179: TYP OPŁATY PRZYGOTOWAWCZEJ PPI III | C179: 1,3% za m-c | D179: Opcja 3 - 1,0%
A180: 11 | B180: TYP OPŁATY PRZYGOTOWAWCZEJ PPI III | C180: 1,4% za m-c | D180: Opcja 3 - 1,0%
A181: 12 | B181: TYP OPŁATY PRZYGOTOWAWCZEJ PPI III | C181: 1,5% za m-c | D181: Opcja 3 - 1,0%
A182: 13 | B182: TYP OPŁATY PRZYGOTOWAWCZEJ PPI III | C182: 1,6% za m-c | D182: Opcja 3 - 1,0%
A183: 15 | B183: TYP OPŁATY PRZYGOTOWAWCZEJ PPI III | C183: 1,8% za m-c | D183: Opcja 3 - 1,0%
A184: 17 | B184: TYP OPŁATY PRZYGOTOWAWCZEJ PPI III | C184: 2% za m-c | D184: Opcja 3 - 1,0%
A185: 18 | B185: TYP OPŁATY PRZYGOTOWAWCZEJ PPI III | C185: standard I max80000pln | D185: Opcja 3 - 1,0%
A186: 19 | B186: TYP OPŁATY PRZYGOTOWAWCZEJ PPI III | C186: standard II max80000pln | D186: Opcja 3 - 1,0%
A187: 20 | B187: TYP OPŁATY PRZYGOTOWAWCZEJ PPI III | C187: 0,7% za m-c max80000pln | D187: Opcja 3 - 1,0%
A188: 21 | B188: TYP OPŁATY PRZYGOTOWAWCZEJ PPI III | C188: 1% za m-c max80000pln | D188: Opcja 3 - 1,0%
A189: 22 | B189: TYP OPŁATY PRZYGOTOWAWCZEJ PPI III | C189: kredyt 0% | D189: Opcja 3 - 1,0%
A190: 23 | B190: TYP OPŁATY PRZYGOTOWAWCZEJ PPI III | C190: ="Promo_"&C172&"_max5000" -> Promo_standard I _max5000 | D190: Opcja 3 - 1,0%
A191: 24 | B191: TYP OPŁATY PRZYGOTOWAWCZEJ PPI III | C191: Promo_standard II _max5000 | D191: Opcja 3 - 1,0%
A192: 25 | B192: TYP OPŁATY PRZYGOTOWAWCZEJ PPI III | C192: Promo_0,6% za m-c_max5000 | D192: Opcja 3 - 1,0%
A193: 27 | B193: TYP OPŁATY PRZYGOTOWAWCZEJ PPI III | C193: Promo_0,8% za m-c_max5000 | D193: Opcja 3 - 1,0%
A194: 29 | B194: TYP OPŁATY PRZYGOTOWAWCZEJ PPI III | C194: Promo_1% za m-c_max5000 | D194: Opcja 3 - 1,0%
A195: 30 | B195: TYP OPŁATY PRZYGOTOWAWCZEJ PPI III | C195: Promo_1,1% za m-c_max5000 | D195: Opcja 3 - 1,0%
A196: 31 | B196: TYP OPŁATY PRZYGOTOWAWCZEJ PPI III | C196: Promo_1,2% za m-c_max5000 | D196: Opcja 3 - 1,0%
A197: 32 | B197: TYP OPŁATY PRZYGOTOWAWCZEJ PPI III | C197: Promo_1,3% za m-c_max5000 | D197: Opcja 3 - 1,0%
A198: 33 | B198: TYP OPŁATY PRZYGOTOWAWCZEJ PPI III | C198: Promo_1,4% za m-c_max5000 | D198: Opcja 3 - 1,0%
A199: 34 | B199: TYP OPŁATY PRZYGOTOWAWCZEJ PPI III | C199: Promo_1,5% za m-c_max5000 | D199: Opcja 3 - 1,0%
A200: 35 | B200: TYP OPŁATY PRZYGOTOWAWCZEJ PPI III | C200: Promo_1,6% za m-c_max5000 | D200: Opcja 3 - 1,0%
A201: 37 | B201: TYP OPŁATY PRZYGOTOWAWCZEJ PPI III | C201: Promo_1,8% za m-c_max5000 | D201: Opcja 3 - 1,0%
... 152 more rows
